[Event "31st MPL National U18G Chess-ch 2022"]
[Site "Pollachi"]
[Date "2022.04.20"]
[Round "5.1"]
[White "Anupam M Sreekumar"]
[Black "Bhagyashree Patil"]
[Result "0-1"]
[ECO "C50"]
[WhiteElo "1724"]
[BlackElo "1974"]
[Annotator "TA"]
[PlyCount "110"]
[EventDate "2022.04.18"]
[EventCountry "IND"]
[SourceTitle "playchess.com"]
[Source "ChessBase"]
[SourceQuality "1"]
[TimeControl "5400+30"]

{[%evp 9,110,0,26,22,38,7,0,0,20,-9,25,-5,40,0,46,45,66,56,81,55,47,-43,-43,-45,-43,-73,-41,-32,-50,-29,-43,-92,-91,-97,-74,-71,-65,-114,-113,-108,-107,-108,-113,-112,-78,-73,-70,-81,-81,-83,-59,-60,-75,-66,-44,-43,-32,-32,-35,-101,-61,-131,-122,-125,-125,-129,-127,-159,-160,-282,-288,-293,-280,-347,-348,-363,-344,-347,-315,-984,-927,-1156,-1087,-12830,-12831,-12833,-12832,-12831,-12831,-12831,-12831,-12839,-12838,-12839,-12835,-12838,-12837,-12838,-12839,-12842,-12839,-12839,-11324]} 1. e4 {[%emt 0:00:10]} e5 {[%emt 0:00:04]} 2. Nf3 {[%emt 0:00:12]} Nc6 {[%emt 0:00:12]} 3. Bc4 {[%emt 0:00:07]} Be7 {[%emt 0:00:35]} 4. d3 {[%emt 0:00:54]} d6 {[%emt 0:00:19]} 5. h3 {[%emt 0:01:55]} Nf6 {[%emt 0:00:34]} 6. a4 {[%emt 0:00:45] C50: Hungarian Defence and Giuoco Pianissimo.} Be6 {[%emt 0:00:25]} 7. Nc3 {[%emt 0:00:58]} O-O {[%emt 0:01:22][%cal Of6e4]} 8. O-O {[%emt 0:00:25] The position is equal.} Qd7 {[%emt 0:02:04]} 9. Be3 {[%emt 0:01:44]} h6 {[%emt 0:01:11]} 10. Qe2 {[%emt 0:01:20] [#]} Kh8 $146 {[%emt 0:04:04]} ({Predecessor:} 10... d5 11. exd5 Nxd5 12. Bb5 Nxc3 13. bxc3 Bf6 14. d4 exd4 15. cxd4 a6 16. Bc4 Na5 17. Bxe6 Qxe6 {0-1 (79) Barua,D (2490)-Ganguly,S (2614) New Delhi 2009}) 11. d4 {[%emt 0:02:44] [#] Strongly threatening d5.} exd4 {[%emt 0:09:25]} (11... Bxh3 $1 $11 12. gxh3 Qxh3) 12. Nxd4 $14 {[%emt 0:00:32]} Rae8 {[%emt 0:02:00]} 13. Rad1 {[%emt 0:05:20]} Bd8 {[%emt 0:03:35]} 14. Bb5 {[%emt 0:03:18]} Nxd4 {[%emt 0:07:12]} 15. Rxd4 {[%emt 0:09:38]} (15. Bxd4 $14 c6 16. Bd3) 15... c6 $15 {[%emt 0:00:25]} 16. Bc4 {[%emt 0:09:59]} Bb6 {[%emt 0:04:10]} 17. Rd2 {[%emt 0:00:17]} Bxc4 {[%emt 0:00:55]} 18. Qxc4 {[%emt 0:00:10]} Bxe3 {[%emt 0:00:04]} 19. fxe3 {[%emt 0:00:09]} Re6 {[%emt 0:00:55]} 20. Rfd1 {[%emt 0:04:50]} (20. Qd4 $15) 20... Rfe8 {[%emt 0:04:41][%cal Rf6e4]} 21. Qb4 {[%emt 0:11:22][%cal Rd2d6]} Nxe4 {[%emt 0:02:27]} 22. Nxe4 {[%emt 0:01:43]} Rxe4 {[%emt 0:01:19]} 23. Rxd6 {[%emt 0:04:54]} Qe7 $17 {[%emt 0:03:10]} ({Much weaker is} 23... Rxb4 $6 24. Rxd7 Rxb2 25. Rxf7 $11) 24. Qd2 {[%emt 0:00:36]} Rxe3 {[%emt 0:01:09]} 25. Rd7 {[%emt 0:00:44]} Qe4 {[%emt 0:02:01] [#] ...Re2 is the strong threat.} 26. Qd4 {[%emt 0:02:05]} Qxd4 {[%emt 0:03:51]} (26... Qg6 {with more complications.} 27. Rxb7 Rxh3 28. Rxf7 Qxf7 29. gxh3 Qg6+) 27. R1xd4 {[%emt 0:01:06]} R8e7 {[%emt 0:00:25]} 28. Rxe7 {[%emt 0:00:33]} Rxe7 $15 {[%emt 0:00:02][%mdl 4096] Endgame KR-KR} 29. Kf2 {[%emt 0:00:07]} g6 {[%emt 0:02:47]} 30. Kf3 {[%emt 0:03:49]} Kg7 {[%emt 0:00:35]} 31. Rd6 {[%emt 0:00:21]} Rc7 {[%emt 0:02:24]} 32. g4 {[%emt 0:02:52]} Kf8 {[%emt 0:01:48]} 33. Rd8+ {[%emt 0:00:57]} Ke7 {[%emt 0:01:49]} 34. Rd4 {[%emt 0:00:34]} (34. Rb8 $15) 34... f6 {[%emt 0:00:40] White is on the road to losing.} 35. Kf4 {[%emt 0:02:16]} ({Better is} 35. a5 $15) 35... Rd7 $17 {[%emt 0:00:22]} 36. Re4+ {[%emt 0:00:09]} Kf7 {[%emt 0:00:04]} 37. b3 {[%emt 0:05:27]} Rd2 {[%emt 0:01:41]} 38. Rb4 {[%emt 0:07:05]} b6 {[%emt 0:01:14]} 39. a5 {[%emt 0:01:05]} (39. Rc4 $17) 39... b5 $19 {[%emt 0:01:14]} ({Inferior is} 39... bxa5 40. Rc4 $15) ({Not} 39... Rxc2 $2 40. axb6 axb6 41. Rxb6 $19) 40. c4 {[%emt 0:02:06]} a6 {[%emt 0:01:34]} 41. cxb5 {[%emt 0:00:24]} cxb5 {[%emt 0:00:23][%cal Bc6b5,Bb5b4][%mdl 32]} 42. h4 {[%emt 0:03:37]} Ra2 {[%emt 0:01:33]} 43. Rd4 {[%emt 0:01:03]} Rxa5 {[%emt 0:00:21]} 44. g5 $2 {[%emt 0:02:32]} (44. Ke4 Ke7 45. Rd1) 44... hxg5+ {[%emt 0:00:41] Black is clearly winning.} 45. hxg5 {[%emt 0:00:03]} fxg5+ {[%emt 0:00:23]} 46. Kxg5 {[%emt 0:00:03]} b4+ {[%emt 0:00:08]} 47. Kf4 {[%emt 0:00:14]} Rf5+ {[%emt 0:00:08]} 48. Ke4 {[%emt 0:01:42]} a5 {[%emt 0:00:14]} 49. Rd7+ {[%emt 0:00:06]} Kf6 {[%emt 0:00:10]} 50. Ra7 {[%emt 0:01:46]} Kg5 {[%emt 0:00:30]} 51. Ra6 {[%emt 0:00:34]} Rb5 {[%emt 0:00:15]} 52. Ra8 {[%emt 0:01:13]} Kg4 {[%emt 0:00:22]} 53. Ke3 {[%emt 0:01:40]} g5 {[%emt 0:00:57]} 54. Rc8 {[%emt 0:02:18]} Rf5 {[%emt 0:03:13]} 55. Ke2 {[%emt 0:00:55]} Kg3 {[%emt 0:00:25] Weighted Error Value: White=0.53/Black=0.11 (very precise)} 0-1

[Event "31st MPL National U18G Chess-ch 2022"]
[Site "Pollachi"]
[Date "2022.04.20"]
[Round "5.3"]
[White "Khairmode Dhanashree"]
[Black "Udagedara, Sandali Kanishka"]
[Result "0-1"]
[ECO "B13"]
[WhiteElo "1438"]
[BlackElo "1510"]
[Annotator "NA RC COMBH"]
[PlyCount "89"]
[EventDate "2022.04.18"]
[EventCountry "IND"]
[SourceTitle "playchess.com"]
[Source "ChessBase"]
[SourceQuality "1"]
[TimeControl "5400+30"]

1. e4 {[%emt 0:00:03]} c6 {[%emt 0:00:18]} 2. d4 {[%emt 0:00:04]} d5 {[%emt 0:00:05]} 3. exd5 {[%emt 0:00:04]} cxd5 {[%emt 0:00:04]} 4. c4 {[%emt 0:00:04]} Nf6 {[%emt 0:00:06]} 5. Nc3 {[%emt 0:00:06]} Nc6 {[%emt 0:00:13]} 6. Bg5 {[%emt 0:00:09]} Be6 {[%emt 0:01:19]} 7. Nf3 {[%emt 0:00:53]} Qa5 {[%emt 0:02:38]} 8. c5 {[%emt 0:05:51]} Bg4 {[%emt 0:16:28]} 9. Bxf6 {[%emt 0:44:13]} gxf6 {[%emt 0:00:17]} 10. Be2 {[%emt 0:07:59]} e6 {[%emt 0:17:41]} 11. a3 {[%emt 0:01:44]} a6 {[%emt 0:01:12]} 12. O-O {[%emt 0:00:17]} Rg8 {[%emt 0:02:12]} 13. Re1 {[%emt 0:00:37]} Be7 {[%emt 0:04:37]} 14. b4 {[%emt 0:03:49]} Qc7 {[%emt 0:00:09]} 15. Qd2 {[%emt 0:02:20]} Kd7 {[%emt 0:04:55]} 16. Na4 {[%emt 0:00:59]} Rad8 {[%emt 0:07:30]} 17. Nb6+ {[%emt 0:01:05]} Ke8 {[%emt 0:00:02]} 18. Kh1 {[%emt 0:03:52]} f5 {[%emt 0:08:01]} 19. h3 {[%emt 0:06:47]} Bxf3 {[%emt 0:02:18]} 20. Bxf3 {[%emt 0:00:05]} Bg5 {[%emt 0:00:11]} 21. Qc3 {[%emt 0:06:26]} Kf8 {[%emt 0:08:31]} 22. g3 {[%emt 0:00:21]} Bf6 {[%emt 0:01:23]} 23. Rad1 {[%emt 0:00:03]} h5 {[%emt 0:03:11]} 24. Bxh5 {[%emt 0:01:51]} Rh8 {[%emt 0:00:01]} 25. Bf3 {[%emt 0:00:04]} Rxh3+ {[%emt 0:00:51]} 26. Kg2 {[%emt 0:00:03]} Rh7 {[%emt 0:00:32]} 27. a4 {[%emt 0:04:25]} Kg7 {[%emt 0:00:09]} 28. b5 {[%emt 0:00:33]} axb5 {[%emt 0:00:10]} 29. axb5 {[%emt 0:00:02]} Ne7 {[%emt 0:00:01]} 30. Rh1 {[%emt 0:03:37]} Rxh1 {[%emt 0:02:18]} 31. Rxh1 {[%emt 0:00:02]} f4 {[%emt 0:00:04]} 32. g4 {[%emt 0:01:35]} Ng6 {[%emt 0:00:05]} 33. Bd1 {[%emt 0:02:02]} Nh4+ {[%emt 0:00:23]} 34. Kf1 {[%emt 0:00:04]} Bg5 {[%emt 0:01:56]} 35. f3 {[%emt 0:01:07]} e5 {[%emt 0:05:09]} 36. dxe5 {[%emt 0:00:40]} d4 {[%emt 0:00:01]} 37. Qc4 {[%emt 0:00:37]} Qxe5 {[%emt 0:00:16]} 38. Rh2 {[%emt 0:01:19]} d3 {[%emt 0:00:18]} 39. Rd2 {[%emt 0:02:00]} Qe3 {[%emt 0:01:13]} 40. Qb4 {[%emt 0:02:38]} Re8 {[%emt 0:13:42]} 41. Rf2 Bf6 {[%emt 0:00:30]} 42. Rd2 Bg5 {[%emt 0:00:30]} 43. Qc4 Bf6 {[%emt 0:00:30]} 44. Rf2 {[%emt 0:02:00]} Bg5 45. Nd5 {[%emt 0:00:30]} 0-1

[Event "31st MPL National U18G Chess-ch 2022"]
[Site "Pollachi"]
[Date "2022.04.20"]
[Round "5.4"]
[White "Jyothsna L"]
[Black "Azal Nasir"]
[Result "1/2-1/2"]
[ECO "E61"]
[WhiteElo "2052"]
[BlackElo "1459"]
[Annotator "TA"]
[PlyCount "38"]
[EventDate "2022.04.18"]
[EventCountry "IND"]
[SourceTitle "playchess.com"]
[Source "ChessBase"]
[SourceQuality "1"]
[TimeControl "5400+30"]

{[%evp 9,38,6,20,11,15,5,13,13,11,17,19,20,44,5,40,31,113,104,114,102,138,147,202,0,135,0,182,0,158,0,186]} 1. d4 {[%emt 0:00:49]} Nf6 {[%emt 0:00:30]} 2. Nf3 {[%emt 0:00:04]} g6 {[%emt 0:00:12]} 3. c4 {[%emt 0:00:06]} Bg7 {[%emt 0:00:06]} 4. Nc3 {[%emt 0:00:02]} d6 {[%emt 0:00:07]} 5. Bg5 {[%emt 0:00:15]} h6 {[%emt 0:00:54]} 6. Bd2 {[%emt 0:04:10] E61: King's Indian: Early deviations for White, including Smyslov System.} O-O {[%emt 0:02:11]} 7. Qc1 {[%emt 0:01:56]} Kh7 {[%emt 0:02:34] [#]} 8. e4 $146 {[%emt 0:03:46]} ({Predecessor:} 8. h4 Nh5 9. e4 e5 10. d5 a5 11. Bd3 Na6 12. Bc2 Nc5 13. Be3 b6 14. Qd2 {0-1 (40) Mamedyarov,S (2782)-Rapport,R (2763) Saint Louis 2021}) 8... e5 {[%emt 0:03:22]} 9. d5 {[%emt 0:00:41]} Nbd7 {[%emt 0:01:53]} 10. Qc2 {[%emt 0:01:31]} Qe7 {[%emt 0:07:54]} 11. g3 {[%emt 0:09:19]} Nh5 {[%emt 0:06:57]} 12. Bg2 {[%emt 0:01:04]} f5 {[%emt 0:01:11] [#]} ({Better is} 12... a5 $14) 13. exf5 $1 $16 {[%emt 0:31:23]} gxf5 {[%emt 0:04:41]} 14. O-O {[%emt 0:01:00]} (14. Nh4 {is more complex.} Nc5 15. O-O a5 16. Nb5) 14... Kh8 {[%emt 0:00:05]} 15. Kh1 {[%emt 0:00:10] &Bianco is more active.} Kh7 {[%emt 0:00:13]} (15... a5 $16 {was worth a try.}) 16. Kg1 {[%emt 0:00:04]} Kh8 $1 {[%emt 0:00:05]} 17. Kh1 {[%emt 0:00:04]} (17. Nh4 $16 {And now Ng6+ would win.} Qf7 18. Qc1) 17... Kh7 $18 {[%emt 0:00:04]} 18. Kg1 {[%emt 0:00:05]} Kh8 $1 {[%emt 0:00:04]} 19. Kh1 {[%emt 0:00:05]} Kh7 $1 {[%emt 1:06:57] Weighted Error Value: White=0.50/Black=0.15 (very precise)} 1/2-1/2

[Event "31st MPL National U18G Chess-ch 2022"]
[Site "Pollachi"]
[Date "2022.04.20"]
[Round "5.5"]
[White "Kheerthi Ganta"]
[Black "Saniya Rafique Tadavi"]
[Result "0-1"]
[ECO "D02"]
[WhiteElo "2011"]
[BlackElo "1298"]
[Annotator "TA"]
[PlyCount "151"]
[EventDate "2022.04.18"]
[EventCountry "IND"]
[SourceTitle "playchess.com"]
[Source "ChessBase"]
[SourceQuality "1"]
[TimeControl "5400+30"]

{[%evp 10,151,17,0,36,10,19,10,45,10,45,32,31,32,43,43,44,50,52,45,41,47,54,30,31,16,12,-16,-13,-23,-12,-14,37,40,38,38,54,41,118,53,77,49,92,75,89,94,89,0,0,-16,-18,-26,0,0,0,4,6,0,0,0,54,40,63,60,60,60,57,45,48,27,25,0,0,-2,0,-17,0,0,0,0,151,145,160,0,0,-57,-60,-55,-68,-249,-239,-307,-296,-313,-293,-306,-292,-279,-282,-360,-358,-351,-364,-300,-235,-287,-280,-274,-220,-1425,-936,-849,-399,-769,-470,-485,-418,-450,-418,-418,-411,-428,-431,-397,-389,-325,-341,-415,-412,-593,-581,-800,-685,-1109,-1148,-976,-919,-29974,-29975,-29976,-29977,-5708,-12801,-29985]} 1. d4 {[%emt 0:00:10]} Nf6 {[%emt 0:00:12]} 2. Nf3 {[%emt 0:01:12]} g6 {[%emt 0:00:12]} 3. g3 {[%emt 0:01:28]} Bg7 {[%emt 0:00:08]} 4. Bg2 {[%emt 0:00:13]} O-O {[%emt 0:00:12]} 5. O-O {[%emt 0:00:48]} d5 {[%emt 0:00:07]} 6. b3 {[%emt 0:02:28]} b5 {[%emt 0:00:42][%cal Oc7c5] D02: 1 d4 d5 2 Nf3 sidelines, including 2...Nf6 3 g3 and 2...Nf6 3 Bf4.} 7. Bb2 {[%emt 0:01:58] [#]} (7. c4 $5) 7... a5 $146 {[%emt 0:00:55]} ({Predecessor:} 7... c6 8. Nbd2 Nbd7 9. Re1 Rb8 10. c3 c5 11. a4 bxa4 12. Rxa4 Qc7 13. Qa1 a6 14. Rc1 {1-0 (23) Hartung Nielsen,J (2224)-Pedersen,K (2305) Denmark 2000}) 8. Nbd2 {[%emt 0:00:59]} Bb7 {[%emt 0:00:30] The position is equal.} 9. Ne5 {[%emt 0:02:07]} Nbd7 {[%emt 0:00:53]} 10. c4 {[%emt 0:02:59]} c6 {[%emt 0:02:00]} 11. Nd3 {[%emt 0:06:37]} Qb6 {[%emt 0:09:37]} 12. Qc2 {[%emt 0:06:02]} Rfe8 {[%emt 0:06:11]} 13. Rac1 {[%emt 0:03:33]} bxc4 {[%emt 0:04:56]} 14. bxc4 {[%emt 0:00:16]} Ba6 {[%emt 0:00:18]} 15. Rb1 {[%emt 0:01:26]} Rac8 {[%emt 0:00:47]} 16. Bc3 {[%emt 0:01:39]} Qa7 {[%emt 0:01:08]} 17. Qa4 {[%emt 0:02:33]} dxc4 $1 {[%emt 0:02:01]} 18. Nxc4 {[%emt 0:00:47]} Nd5 {[%emt 0:01:31]} 19. Qxa5 {[%emt 0:00:52]} (19. Bb2 {keeps more tension.} Bb5 20. Qc2 Nb4 21. Nxb4 axb4 22. Bh3) 19... Nxc3 {[%emt 0:00:37]} 20. Qxc3 {[%emt 0:00:18]} Qxd4 {[%emt 0:02:39]} (20... Bxd4 $11 21. Qc2 Bb5) 21. Qxd4 $14 {[%emt 0:00:47]} Bxd4 {[%emt 0:00:05] This bishop pair is nice.} 22. Rfc1 {[%emt 0:00:21]} Bb5 {[%emt 0:03:31]} 23. Na5 {[%emt 0:01:49][%cal Ra5c6]} Nb8 {[%emt 0:05:28]} (23... Bxd3 $14 24. exd3 c5) 24. Nb4 {[%emt 0:01:34]} (24. a4 $16 Bxd3 25. exd3) 24... c5 {[%emt 0:02:52]} 25. Nd3 {[%emt 0:01:57]} Ba6 {[%emt 0:01:35]} 26. Bb7 {[%emt 0:01:04]} Bxd3 {[%emt 0:02:32]} 27. exd3 {[%emt 0:00:18]} Rc7 {[%emt 0:00:19]} 28. Bf3 {[%emt 0:01:06]} (28. a4 $16) 28... Ra7 $11 {[%emt 0:00:56]} 29. Rb5 {[%emt 0:02:36]} Nd7 {[%emt 0:07:05]} 30. Nb3 {[%emt 0:06:36]} (30. a4 {seems wilder.} Ne5 31. Be4 Kg7 32. Nc6) 30... Bb2 {[%emt 0:08:16]} (30... Rxa2 $5 {[%cal Rd4f2]} 31. Nxd4 cxd4 $15) 31. Rc2 {[%emt 0:00:15]} Ba3 {[%emt 0:08:09]} 32. Be4 {[%emt 0:03:19]} Rd8 {[%emt 0:01:25]} 33. f4 {[%emt 0:02:04]} Kg7 {[%emt 0:03:37]} 34. Na5 {[%emt 0:02:31]} Re8 {[%emt 0:00:52]} (34... Rb8 $11 35. Rxb8 Nxb8) 35. Nc6 $1 $14 {[%emt 0:00:55]} Ra4 {[%emt 0:01:03]} 36. Rb7 {[%emt 0:01:29]} Nf6 {[%emt 0:00:30][%cal Oc5c4]} 37. Bf3 {[%emt 0:00:11]} ({Don't play} 37. Nxe7 c4 38. Nd5 Bc5+ 39. Kf1 cxd3 $1 40. Bxd3 Nxd5 $11) 37... Kf8 {[%emt 0:02:24]} 38. Ne5 {[%emt 0:00:48] Threatens to win with Bc6.} Rd8 {[%emt 0:01:08]} 39. Kf2 {[%emt 0:02:08]} Bb4 {[%emt 0:01:37]} 40. Rc7 {[%emt 0:03:29]} (40. Bc6 $5 {[%cal Rc6a4]} Ra3 41. Re2 $14) 40... Ra3 {[%emt 0:21:30]} 41. Ke2 {[%emt 0:02:04]} h5 {[%emt 0:00:00]} 42. h3 {[%emt 0:00:08]} Rd4 {[%emt 0:00:00][%cal Oh5h4]} 43. Rc8+ {[%emt 0:05:07]} Kg7 {[%emt 0:00:00]} 44. Ra8 {[%emt 0:00:21]} h4 $2 {[%emt 0:00:00]} (44... Rxa8 $11 45. Bxa8 Rd6) 45. Rxa3 $16 {[%emt 0:00:27]} Bxa3 {[%emt 0:00:00] [#]} 46. Rc3 $2 {[%emt 0:00:35]} ({Only move:} 46. Nc4 $1 $16 {[%cal Rc4a3]}) 46... Bb4 $11 {[%emt 0:00:00]} 47. Rb3 {[%emt 0:00:34]} ({White should try} 47. Rc4 $11) 47... hxg3 $15 {[%emt 0:00:00]} 48. a3 {[%emt 0:00:16]} Ba5 {[%emt 0:00:00] Hoping for ...Bc7.} ({Don't do} 48... Rxf4 49. axb4 Rxb4 50. Rc3 $14) 49. Nc4 $2 {[%emt 0:02:49] White does not recover from this.} ({White should play} 49. Rb5 $15 Ra4 50. Nc4) 49... Bc7 $19 {[%emt 0:00:00]} 50. Rb7 {[%emt 0:00:25]} Bxf4 {[%emt 0:00:00]} 51. Rxe7 {[%emt 0:00:51]} Nd5 {[%emt 0:00:00]} 52. Bxd5 {[%emt 0:04:08]} Rxd5 {[%emt 0:00:00][%mdl 4096] Endgame KRB-KRN} 53. Ne3 {[%emt 0:01:27]} Rd8 {[%emt 0:00:00] And now ...Bg5 would win.} ({Weaker is} 53... Bxe3 54. Rxe3 g2 55. Rg3 $17) 54. Ng2 {[%emt 0:01:04]} Bd6 {[%emt 0:00:00]} 55. Rb7 {[%emt 0:00:13]} Ra8 {[%emt 0:00:00]} 56. Rb3 {[%emt 0:00:15]} g5 {[%emt 0:00:00]} 57. Kf3 {[%emt 0:00:42]} Ra4 {[%emt 0:00:00]} 58. Ne3 {[%emt 0:03:25] aiming for Nf5+.} Rf4+ {[%emt 0:00:00]} 59. Ke2 $2 {[%emt 0:00:06]} (59. Kg2) 59... Rf2+ {[%emt 0:00:00]} 60. Ke1 {[%emt 0:00:06]} Bf4 {[%emt 0:00:00]} (60... Be5 $142 {( -> ...Bd4)} 61. Nf1 Rf3 62. Nxg3 Rxg3) 61. d4 $2 {[%emt 0:00:32]} (61. Nc4) 61... cxd4 {[%emt 0:00:00]} 62. Nf5+ {[%emt 0:00:08]} Kg6 {[%emt 0:00:00]} 63. Nxg3 {[%emt 0:00:08]} Rh2 {[%emt 0:00:05]} 64. Nf1 {[%emt 0:00:17]} Ra2 {[%emt 0:00:43]} 65. Ng3 {[%emt 0:00:14]} Be3 {[%emt 0:01:13]} 66. Nf1 {[%emt 0:01:01]} Bc1 {[%emt 0:00:31]} 67. Rb6+ {[%emt 0:01:34]} f6 {[%emt 0:00:26]} 68. Rd6 {[%emt 0:00:22]} Bb2 {[%emt 0:00:58]} 69. Ng3 {[%emt 0:00:18]} (69. a4 $142) 69... Rxa3 {[%emt 0:00:09]} 70. Ne2 {[%emt 0:00:12]} Rxh3 {[%emt 0:00:26]} 71. Kd2 {[%emt 0:00:19]} Bc3+ {[%emt 0:02:05]} 72. Kc2 {[%emt 0:00:09]} Re3 {[%emt 0:00:20]} 73. Nxd4 {[%emt 0:00:37]} Bxd4 {[%emt 0:00:05]} 74. Rxd4 {[%emt 0:00:04]} f5 {[%emt 0:00:13]} 75. Kd2 {[%emt 0:00:03]} Re4 {[%emt 0:00:19]} (75... f4 $142 76. Ra4 Kf5 77. Ra5+ Re5) 76. Kd3 {[%emt 0:23:47] Weighted Error Value: White=0.38/Black=0.29 (precise)} 0-1

[Event "31st MPL National U18G Chess-ch 2022"]
[Site "Pollachi"]
[Date "2022.04.20"]
[Round "5.6"]
[White "Keerthana B"]
[Black "Rindhiya V"]
[Result "0-1"]
[ECO "C89"]
[WhiteElo "1311"]
[BlackElo "1949"]
[Annotator "TA"]
[PlyCount "54"]
[EventDate "2022.04.18"]
[EventCountry "IND"]
[SourceTitle "playchess.com"]
[Source "ChessBase"]
[SourceQuality "1"]
[TimeControl "5400+30"]

{[%evp 19,54,-12,-3,-6,18,8,18,0,13,2,7,-6,-12,-6,-7,-11,-6,-24,0,-20,0,0,0,0,7,-16,-11,-64,-27,-41,-33,-123,-47,-259,-225,-875,-861]} 1. e4 {[%emt 0:00:05]} e5 {[%emt 0:00:11]} 2. Nf3 {[%emt 0:00:05]} Nc6 {[%emt 0:00:02]} 3. Bb5 {[%emt 0:00:07]} a6 {[%emt 0:00:04]} 4. Ba4 {[%emt 0:00:03]} Nf6 {[%emt 0:00:05]} 5. O-O {[%emt 0:00:24]} Be7 {[%emt 0:00:10]} 6. Re1 {[%emt 0:00:14]} b5 {[%emt 0:00:07]} 7. Bb3 {[%emt 0:00:05]} O-O {[%emt 0:00:07]} 8. c3 {[%emt 0:00:15]} d5 {[%emt 0:01:13]} 9. exd5 {[%emt 0:01:11]} Nxd5 {[%emt 0:00:05]} 10. d4 {[%emt 0:05:11]} exd4 {[%emt 0:03:25]} 11. cxd4 {[%emt 0:00:05] C89: Closed Ruy Lopez: Marshall Attack.} Be6 {[%emt 0:13:19]} (11... Bg4) 12. Nc3 {[%emt 0:06:32] [#]} Qd7 $146 {[%emt 0:11:08]} ({Predecessor:} 12... Re8 13. h3 Na5 14. Bc2 Nxc3 15. bxc3 Nc4 16. a4 c6 17. Bf4 g6 18. Ne5 Nxe5 19. Bxe5 {0-1 (48) Jansa,V (2409)-Zilka,S (2524) Czech Republic 2017}) 13. Bd2 {[%emt 0:14:21] The position is equal.} Rfe8 {[%emt 0:14:03]} 14. h3 {[%emt 0:07:29]} Rad8 {[%emt 0:10:40]} 15. Ne4 {[%emt 0:06:09]} (15. Bg5 {keeps more tension.} Nxc3 16. bxc3 Bxg5 17. Nxg5 Bd5 18. Qd3) 15... Nf6 {[%emt 0:14:48]} 16. Bxe6 {[%emt 0:04:47]} Qxe6 {[%emt 0:02:10]} 17. Nxf6+ {[%emt 0:00:30]} Qxf6 {[%emt 0:00:07]} 18. Be3 {[%emt 0:00:46]} Qd6 {[%emt 0:09:25]} 19. Qd2 {[%emt 0:03:41]} Bf6 {[%emt 0:04:22]} 20. Red1 {[%emt 0:01:32]} Re4 {[%emt 0:02:58][%cal Rc6d4]} 21. Qc2 {[%emt 0:04:32]} Qd5 {[%emt 0:02:09]} 22. Nd2 {[%emt 0:02:57]} Re6 {[%emt 0:03:31]} 23. Nb3 {[%emt 0:00:48]} (23. Nf3) (23. Nf3 $11) 23... Bg5 {[%emt 0:02:12] &Nero is more active.} 24. Nc5 {[%emt 0:10:43]} Rg6 {[%emt 0:02:23]} 25. f4 {[%emt 0:10:09]} ({Better is} 25. Qe4 $15) 25... Bf6 {[%emt 0:01:51]} (25... Bh4 $17 {...Re8 is the strong threat.} 26. Qe4 Qxe4 27. Nxe4 Re6) 26. Nb3 $2 {[%emt 0:01:37]} ({White should try} 26. f5 $1 $15 Rg3 27. Bf4 (27. Qf2 $2 Rxe3 28. Qxe3 Bxd4 $19) 27... Nxd4 28. Qe4) 26... Re8 {[%emt 0:01:52]} 27. Qf2 $2 {[%emt 0:00:24] [#]} (27. Re1 Nb4 28. Qd2) 27... Rxe3 $1 {[%emt 0:00:19][%mdl 512] Weighted Error Value: White=0.74/Black=0.14 (very precise)} 0-1